fUSD/lending_fUSD_20250106
["ID","MTS","AMOUNT","RATE_DAILY","PERIOD"]
[347822980,1736135432933,-500.0,0.00011753,2]
[347822981,1736135432944,-500.0,0.00011753,2]
[347822982,1736135432955,-500.0,0.00011753,2]
[347822983,1736135432964,-500.0,0.00011753,2]
[347822984,1736135432974,-500.0,0.00011753,2]
[347822985,1736135432983,-500.0,0.00011753,2]
[347822986,1736135432992,-467.09044318,0.00011753,2]
[347822987,1736135433001,-500.0,0.00011753,2]
[347822988,1736135433010,-500.0,0.00011753,2]
[347822989,1736135433019,-500.0,0.00011753,2]
[347822990,1736135433029,-500.0,0.00011753,2]
[347822991,1736135433038,-500.0,0.00011753,2]
[347822992,1736135433048,-500.0,0.00011753,2]
[347822993,1736135433057,-500.0,0.00011753,2]
[347822994,1736135433066,-500.0,0.00011753,2]
[347822995,1736135433076,-500.0,0.00011753,2]
[347822996,1736135433085,-521.09,0.00011753,2]
[347822997,1736135433094,-500.0,0.00011753,2]
[347822998,1736135433103,-500.0,0.00011753,2]
[347822999,1736135433113,-553.30221765,0.00011753,2]
[347823000,1736135433122,-500.0,0.00011753,2]
[347823001,1736135433131,-500.0,0.00011753,2]
[347823002,1736135433140,-500.0,0.00011753,2]
[347823003,1736135433149,-500.0,0.00011753,2]
[347823004,1736135433159,-500.0,0.00011753,2]
[347823005,1736135433168,-500.0,0.00011753,2]
[347823006,1736135433180,-500.0,0.00011753,2]
[347823007,1736135433190,-500.0,0.00011753,2]
[347823008,1736135433199,-500.0,0.00011753,2]
[347823009,1736135433208,-500.0,0.00011753,2]
[347823010,1736135433218,-500.0,0.00011753,2]
[347823011,1736135433227,-500.0,0.00011753,2]
[347823012,1736135433237,-500.0,0.00011753,2]
[347823013,1736135433246,-500.0,0.00011753,2]
[347823014,1736135433255,-500.0,0.00011753,2]
[347823015,1736135433264,-500.0,0.00011753,2]
[347823016,1736135433274,-500.0,0.00011753,2]
[347823017,1736135433283,-500.0,0.00011753,2]
[347823018,1736135433292,-500.0,0.00011753,2]
[347823019,1736135433301,-500.79,0.00011753,2]
[347823020,1736135433311,-1585.67,0.00011753,2]
[347823021,1736135433320,-569.8,0.00011753,2]
[347823022,1736135433330,-657.82,0.00011754,2]
[347823023,1736135433339,-2043.6,0.00011754,2]
[347823024,1736135433348,-751.61,0.00011754,2]
[347823025,1736135433357,-1056.96,0.00011754,2]
[347823026,1736135433367,-611.07,0.00011754,2]
[347823027,1736135433376,-500.0,0.00011754,2]
[347823028,1736135433386,-468.44246896,0.00011754,2]
[347823029,1736135433395,-500.0,0.00011754,2]
[347823030,1736135433404,-1497.52,0.00011755,2]
[347823031,1736135433413,-1363.96,0.00011755,2]
[347823032,1736135433424,-931.39,0.00011755,2]
[347823033,1736135433434,-500.0,0.00011755,2]
[347823034,1736135433443,-500.0,0.00011755,2]
[347823035,1736135433452,-500.0,0.00011755,2]
[347823036,1736135433462,-500.0,0.00011755,2]
[347823037,1736135433471,-500.0,0.00011755,2]
[347823038,1736135433481,-500.0,0.00011755,2]
[347823039,1736135433490,-500.0,0.00011755,2]
[347823040,1736135433500,-500.0,0.00011755,2]
[347823041,1736135433509,-600.92,0.00011755,2]
[347823042,1736135433519,-1383.03,0.00011772,2]
[347823043,1736135433528,-3496.96,0.00011772,2]
[347823044,1736135433538,-585.55,0.00011772,2]
[347823045,1736135433547,-500.0,0.00011772,2]
[347823046,1736135433556,-369.32446526,0.00011798,2]
[347823047,1736135433566,-804.5,0.00011798,2]
[347823048,1736135433575,-907.92,0.00011798,2]
[347823049,1736135433586,-500.0,0.00011798,2]
[347823050,1736135433595,-271.32555466,0.00011798,2]
[347823051,1736135433604,-873.56,0.00011798,2]
[347823052,1736135433614,-500.0,0.00011798,2]
[347823053,1736135433623,-500.0,0.00011798,2]
[347823054,1736135433633,-500.0,0.00011798,2]
[347823055,1736135433643,-500.0,0.00011798,2]
[347823056,1736135433652,-500.0,0.00011798,2]
[347823057,1736135433661,-500.0,0.00011798,2]
[347823058,1736135433671,-500.0,0.00011798,2]
[347823059,1736135433680,-500.0,0.00011798,2]
[347823060,1736135433689,-500.0,0.00011798,2]
[347823061,1736135433699,-557.76,0.00011798,2]
[347823062,1736135433708,-466.8057,0.00011798,2]
[347823063,1736135433719,-1141.91050489,0.00011799,3]
[347823064,1736135433729,-1141.91050489,0.00011799,3]
[347823065,1736135433739,-2000.0,0.00011799,2]
[347823066,1736135433749,-200.0,0.00011799,2]
[347823067,1736135433760,-276.473098,0.00011799,2]
[347823068,1736135433770,-346.374218,0.00011799,2]
[347823069,1736135433780,-500.0,0.00011799,2]
[347823070,1736135433790,-2043.71,0.00011799,2]
[347823071,1736135433800,-500.0,0.00011799,2]
[347823072,1736135433809,-500.0,0.00011799,2]
[347823073,1736135433819,-624.06,0.00011799,2]
[347823074,1736135433829,-2000.0,0.00011799,2]
[347823075,1736135433839,-200.0,0.00011799,2]
[347823076,1736135433848,-500.0,0.00011799,2]
[347823077,1736135433858,-500.0,0.00011799,2]
[347823078,1736135433867,-500.0,0.00011799,2]
[347823079,1736135433877,-500.0,0.00011799,2]
[347823080,1736135433887,-500.0,0.00011799,2]
[347823081,1736135433896,-500.0,0.00011799,2]
[347823082,1736135433906,-500.0,0.00011799,2]
[347823083,1736135433916,-500.0,0.00011799,2]
[347823084,1736135433927,-500.0,0.00011799,2]
[347823085,1736135433937,-1000.0,0.00011799,2]
[347823086,1736135433946,-500.0,0.00011799,2]
[347823087,1736135433957,-500.0,0.00011799,2]
[347823088,1736135433966,-500.0,0.00011799,2]
[347823089,1736135433976,-500.0,0.00011799,2]
[347823090,1736135433986,-500.0,0.00011799,2]
[347823091,1736135433996,-500.0,0.00011799,2]
[347823092,1736135434005,-500.0,0.00011799,2]
[347823093,1736135434015,-500.0,0.00011799,2]
[347823094,1736135434025,-500.0,0.00011799,2]
[347823095,1736135434034,-500.0,0.00011799,2]
[347823096,1736135434044,-815.49,0.00011799,2]
[347823097,1736135434053,-500.0,0.00011799,2]
[347823098,1736135434063,-500.0,0.00011799,2]
[347823099,1736135434072,-500.0,0.00011799,2]
[347823100,1736135434082,-500.0,0.00011799,2]
[347823101,1736135434091,-500.0,0.00011799,2]
[347823102,1736135434100,-1642.06,0.00011799,2]
[347823103,1736135434110,-500.0,0.00011799,2]
[347823104,1736135434119,-500.0,0.00011799,2]
[347823105,1736135434128,-550.15,0.00011799,2]
[347823106,1736135434137,-500.0,0.00011799,2]
[347823107,1736135434147,-500.0,0.00011799,2]
[347823108,1736135434156,-796.89,0.00011799,2]
[347823109,1736135434166,-500.0,0.00011799,2]
[347823110,1736135434177,-500.0,0.00011799,2]
[347823111,1736135434190,-500.0,0.00011799,2]
[347823112,1736135434199,-500.0,0.00011799,2]
[347823113,1736135434209,-3172.93,0.00011799,2]
[347823114,1736135434218,-500.0,0.00011799,2]
[347823115,1736135434229,-500.0,0.00011799,2]
[347823116,1736135434239,-500.0,0.00011799,2]
[347823117,1736135434248,-200.0,0.00011799,2]
[347823118,1736135434259,-500.0,0.00011799,2]
[347823119,1736135434269,-500.0,0.00011799,2]
[347823120,1736135434279,-2709.66,0.00011799,2]
[347823121,1736135434288,-500.0,0.00011799,2]
[347823122,1736135434299,-500.0,0.00011799,2]
[347823123,1736135434308,-500.0,0.00011799,2]
[347823124,1736135434318,-500.0,0.00011799,2]
[347823125,1736135434328,-500.0,0.00011799,2]
[347823126,1736135434338,-500.0,0.00011799,2]
[347823127,1736135434347,-500.0,0.00011799,2]
[347823128,1736135434357,-500.40166056,0.00011799,2]
[347823129,1736135434366,-500.0,0.00011799,2]
[347823130,1736135434376,-500.0,0.00011799,2]
[347823131,1736135434385,-500.0,0.00011799,2]
[347823132,1736135434395,-500.0,0.00011799,2]
[347823133,1736135434404,-500.0,0.00011799,2]
[347823134,1736135434413,-3000.0,0.00011799,2]
[347823135,1736135434423,-500.0,0.00011799,2]
[347823136,1736135434433,-500.0,0.00011799,2]
[347823137,1736135434443,-2306.26,0.00011799,2]
[347823138,1736135434452,-500.0,0.00011799,2]
[347823139,1736135434462,-500.0,0.00011799,2]
[347823140,1736135434471,-500.0,0.00011799,2]
[347823141,1736135434481,-500.0,0.00011799,2]
[347823142,1736135434491,-500.0,0.00011799,2]
[347823143,1736135434501,-953.35,0.00011799,2]
[347823144,1736135434510,-500.0,0.00011799,2]
[347823145,1736135434520,-500.0,0.00011799,2]
[347823146,1736135434529,-500.0,0.00011799,2]
[347823147,1736135434539,-500.0,0.00011799,2]
[347823148,1736135434548,-500.0,0.00011799,2]
[347823149,1736135434558,-500.0,0.00011799,2]
[347823150,1736135434567,-500.0,0.00011799,2]
[347823151,1736135434576,-500.0,0.00011799,2]
[347823152,1736135434586,-733.44,0.00011799,2]
[347823153,1736135434595,-500.0,0.00011799,2]
[347823154,1736135434604,-623.47,0.00011799,2]
[347823155,1736135434614,-25.24691378,0.00011799,2]
[347823156,1736135434629,-381.07020219,0.00011799,2]
[347823157,1736135434640,-93.68288403,0.00011799,2]
[347823158,1736135434649,-163.51311597,0.00011799,2]
[347823159,1736135434661,-336.48688403,0.00011799,2]
[347823160,1736135434670,-1390.25,0.00011799,2]
[347823161,1736135434680,-500.0,0.00011799,2]
[347823162,1736135434689,-500.0,0.00011799,2]
[347823163,1736135434699,-500.0,0.00011799,2]
[347823164,1736135434709,-500.0,0.00011799,2]
[347823165,1736135434719,-1297.55,0.00011799,2]
[347823166,1736135434729,-1964.7,0.00011799,2]
[347823167,1736135434739,-500.0,0.00011799,2]
[347823168,1736135434748,-500.0,0.00011799,2]
[347823169,1736135434758,-500.0,0.00011799,2]
[347823170,1736135434768,-500.0,0.00011799,2]
[347823171,1736135434778,-500.0,0.00011799,2]
[347823172,1736135434788,-500.0,0.00011799,2]
[347823173,1736135434798,-1104.65,0.00011799,2]
[347823174,1736135434807,-500.0,0.00011799,2]
[347823175,1736135434817,-500.0,0.00011799,2]
[347823176,1736135434827,-643.97,0.00011799,2]
[347823177,1736135434837,-500.0,0.00011799,2]
[347823178,1736135434846,-534.47,0.00011799,2]
[347823179,1736135434856,-500.0,0.00011799,2]
[347823180,1736135434865,-500.0,0.00011799,2]
[347823181,1736135434875,-507.73547527,0.00011799,2]
[347823182,1736135434886,-500.0,0.00011799,2]
[347823183,1736135434896,-500.0,0.00011799,2]
[347823184,1736135434906,-500.0,0.00011799,2]
[347823185,1736135434915,-500.0,0.00011799,2]
[347823186,1736135434925,-500.0,0.00011799,2]
[347823187,1736135434935,-500.0,0.00011799,2]
[347823188,1736135434945,-500.0,0.00011799,2]
[347823189,1736135434954,-500.0,0.00011799,2]
[347823190,1736135434964,-500.0,0.00011799,2]
[347823191,1736135434974,-626.06,0.00011799,2]
[347823192,1736135434983,-500.0,0.00011799,2]
[347823193,1736135434993,-500.0,0.00011799,2]
[347823194,1736135435004,-500.0,0.00011799,2]
[347823195,1736135435014,-500.0,0.00011799,2]
[347823196,1736135435024,-500.0,0.00011799,2]
[347823197,1736135435034,-882.21,0.00011799,2]
[347823198,1736135435043,-500.0,0.00011799,2]
[347823199,1736135435053,-546.53,0.00011799,2]
[347823200,1736135435062,-500.0,0.00011799,2]
[347823201,1736135435072,-1917.29,0.00011799,2]
[347823202,1736135435081,-500.0,0.00011799,2]
[347823203,1736135435090,-506.40126347,0.00011799,2]
[347823204,1736135435099,-500.0,0.00011799,2]
[347823205,1736135435108,-500.0,0.00011799,2]
[347823206,1736135435118,-500.0,0.00011799,2]
[347823207,1736135435127,-500.0,0.00011799,2]
[347823208,1736135435136,-689.43,0.00011799,2]
[347823209,1736135435145,-500.0,0.00011799,2]
[347823210,1736135435154,-500.0,0.00011799,2]
[347823211,1736135435163,-500.0,0.00011799,2]
[347823212,1736135435173,-500.0,0.00011799,2]
[347823213,1736135435183,-183.35,0.00011799,2]
[347823214,1736135435192,-500.0,0.00011799,2]
[347823215,1736135435201,-500.0,0.00011799,2]
[347823216,1736135435210,-200.0,0.00011799,2]
[347823217,1736135435220,-500.0,0.00011799,2]
[347823218,1736135435229,-500.0,0.00011799,2]
[347823219,1736135435238,-500.0,0.00011799,2]
[347823220,1736135435247,-500.0,0.00011799,2]
[347823221,1736135435256,-1612.16,0.00011799,2]
[347823222,1736135435266,-1219.84,0.00011799,2]
[347823223,1736135435276,-500.0,0.00011799,2]
[347823224,1736135435285,-673.0,0.000118,2]
[347823225,1736135435295,-203815.22002401,0.000118,2]
[347823226,1736135435307,-355.45987213,0.000118,2]
[347823227,1736135435318,-648.96466403,0.000118,2]
[347823228,1736135435329,-2345.7000092,0.000118,2]
[347823229,1736135435386,-634.13473069,0.000118,2]
[347823230,1736135435398,-531.65387139,0.000118,2]
[347823231,1736135435410,-1706.8058045,0.000118,2]
[347823232,1736135435421,-745.72050545,0.000118,2]
[347823233,1736135435432,-822.9,0.000118,2]
[347823234,1736135435443,-344.7799999,0.000118,2]
[347823235,1736135435454,-3389.16754379,0.000118,2]
[347823236,1736135435465,-1182.71091713,0.000118,2]
[347823237,1736135435476,-1204.50000005,0.000118,2]
[347823238,1736135435487,-43394.66816171,0.000118,2]
[347823242,1736135438013,-986.58501,0.000118,2]
[347823243,1736135438024,-3951.00000001,0.000118,2]
[347823244,1736135438035,-500.0,0.000118,2]
[347823245,1736135438046,-325338.25808452,0.000118,2]
[347823246,1736135438058,-1608.21638362,0.000118,2]
[347823247,1736135438069,-769.22313,0.000118,2]
[347823248,1736135438080,-4795.60980483,0.000118,2]
[347823249,1736135438091,-10159.13071398,0.000118,2]
[347823250,1736135438102,-24741.8929,0.000118,2]
[347823251,1736135438113,-30059.56939588,0.000118,2]
[347823252,1736135438124,-873.78095224,0.000118,2]
[347823253,1736135438135,-2151.0577244,0.000118,2]
[347823261,1736135440110,-795.64,0.00011754,2]
[347823262,1736135440119,-500.0,0.00011799,2]
[347823263,1736135440129,-597.49,0.00011799,2]
[347823264,1736135440139,-2583.26938864,0.000118,2]
[347823265,1736135440150,-377949.81822427,0.000118,2]
[347823266,1736135440161,-396.478,0.000118,2]
[347823327,1736135441165,-8863.18745517,0.000118,2]
[347823477,1736135442986,-681.83583395,0.000118,2]
[347823478,1736135443000,-4022.70332292,0.000118,2]
[347823479,1736135443014,-8061.9412682,0.000118,2]
[347823480,1736135443029,-7972.0,0.000118,2]
[347823482,1736135443223,-588.89035572,0.000118,2]
[347823484,1736135443237,-3176.60434443,0.000118,2]
[347823516,1736135445885,-500.0,0.00011799,2]
[347823517,1736135445895,-434.40077117,0.000118,2]
[347823518,1736135445911,-3167.31049717,0.000118,2]
[347823519,1736135446140,-3456.25973357,0.000118,2]
[347823520,1736135446153,-355.56415869,0.000118,2]
[347823521,1736135446166,-917.45574337,0.000118,2]
[347823522,1736135446178,-7123.87122019,0.000118,2]
[347823547,1736135801159,400.0,5e-05,6]
[347823548,1736135801181,400.0,5e-05,6]
[347823549,1736135801201,294.0,5e-05,6]
[347823565,1736136631838,-395.73,8.498e-05,2]
[347823566,1736136631847,-160.47,0.00010137,2]
[347823567,1736136631856,-153.74144462,0.00010245,2]
[347823568,1736136631866,-153.74144461,0.0001026,2]
[347823569,1736136631875,-1029.43,0.00010338,2]
[347823570,1736136631884,-10004.0,0.00010346,2]
[347823571,1736136631893,-250.0,0.0001036,2]
[347823572,1736136631902,-1132.06,0.0001036,2]
[347823573,1736136631911,-250.0,0.00010383,2]
[347823574,1736136631920,-303.29,0.000104,2]
[347823575,1736136631930,-9623.61,0.000104,2]
[347823576,1736136631939,-250.0,0.00010476,2]
[347823577,1736136631949,-1000.0,0.00010482,2]
[347823578,1736136631959,-481.81,0.00010543,2]
[347823579,1736136631968,-395.73,0.00010762,2]
[347823580,1736136631977,-257.38465166,0.000109,2]
[347823581,1736136631986,-257.38465156,0.00010969,2]
[347823582,1736136631995,-400.0,0.00010986,2]
[347823583,1736136632005,-14711.81555874,0.00011,7]
[347823584,1736136632014,-1515.46,0.00011027,2]
[347823585,1736136632024,-257.38465156,0.00011038,2]
[347823586,1736136632033,-257.38465156,0.00011107,2]
[347823587,1736136632042,-1492.57,0.00011119,2]
[347823588,1736136632051,-257.38465156,0.00011176,2]
[347823589,1736136632061,-200.0,0.00011186,2]
[347823590,1736136632071,-200.0,0.00011195,2]
[347823591,1736136632083,-352.553,0.0001121,2]
[347823592,1736136632092,-1494.09,0.00011223,2]
[347823593,1736136632102,-500.89616561,0.00011229,2]
[347823594,1736136632111,-257.38465156,0.00011245,2]
[347823595,1736136632120,-150.0,0.00011245,2]
[347823596,1736136632129,-500.0,0.00011264,2]
[347823597,1736136632139,-257.38465156,0.00011314,2]
[347823598,1736136632148,-257.38465156,0.00011383,2]
[347823599,1736136632157,-1511.32,0.00011389,2]
[347823600,1736136632167,-257.38465156,0.00011452,2]
[347823601,1736136632177,-3179.51271205,0.00011453,2]
[347823602,1736136632186,-257.38465156,0.00011521,2]
[347823603,1736136632197,-429.5697054,0.00011563,2]
[347823604,1736136632206,-10163.0,0.00011565,2]
[347823605,1736136632215,-257.38465156,0.0001159,2]
[347823606,1736136632224,-295.558993,0.00011594,2]
[347823607,1736136632234,-1514.21,0.00011612,2]
[347823608,1736136632243,-257.38465156,0.00011659,2]
[347823609,1736136632252,-257.38465156,0.00011728,2]
[347823610,1736136632262,-678.12,0.00011753,2]
[347823611,1736136632271,-500.0,0.00011753,2]
[347823613,1736136632280,-521.63,0.00011753,2]
[347823614,1736136632289,-1000.0,0.00011753,2]
[347823615,1736136632298,-500.0,0.00011753,2]
[347823616,1736136632308,-500.0,0.00011753,2]
[347823617,1736136632317,-903.48,0.00011753,2]
[347823618,1736136632326,-646.04,0.00011754,2]
[347823619,1736136632336,-1475.84,0.00011762,2]
[347823620,1736136632345,-1000.0,0.00011792,2]
[347823621,1736136632354,-257.38465156,0.00011797,2]
[347823622,1736136632363,-500.0,0.00011798,2]
[347823623,1736136632373,-500.0,0.00011798,2]
[347823624,1736136632384,-500.0,0.00011798,2]
[347823625,1736136632393,-500.0,0.00011798,2]
[347823626,1736136632403,-500.0,0.00011798,2]
[347823627,1736136632412,-500.0,0.00011798,2]
[347823629,1736136632421,-500.0,0.00011798,2]
[347823631,1736136632430,-500.0,0.00011798,2]
[347823633,1736136632440,-500.0,0.00011798,2]
[347823634,1736136632451,-500.0,0.00011798,2]
[347823635,1736136632460,-500.0,0.00011798,2]
[347823636,1736136632470,-500.0,0.00011798,2]
[347823637,1736136632479,-500.0,0.00011798,2]
[347823638,1736136632488,-500.0,0.00011798,2]
[347823639,1736136632498,-500.0,0.00011798,2]
[347823640,1736136632507,-500.0,0.00011798,2]
[347823641,1736136632517,-500.0,0.00011798,2]
[347823642,1736136632526,-500.0,0.00011798,2]
[347823643,1736136632535,-500.0,0.00011798,2]
[347823644,1736136632545,-500.0,0.00011798,2]
[347823645,1736136632554,-500.0,0.00011798,2]
[347823646,1736136632563,-500.0,0.00011798,2]
[347823647,1736136632573,-500.0,0.00011798,2]
[347823648,1736136632582,-500.0,0.00011798,2]
[347823649,1736136632591,-500.0,0.00011798,2]
[347823650,1736136632600,-500.0,0.00011798,2]
[347823651,1736136632613,-500.0,0.00011798,2]
[347823652,1736136632622,-500.0,0.00011798,2]
[347823653,1736136632632,-500.0,0.00011798,2]
[347823654,1736136632641,-224.12755242,0.00011799,2]
[347823655,1736136632651,-500.0,0.00011799,2]
[347823656,1736136632661,-500.0,0.00011799,2]
[347823657,1736136632670,-500.0,0.00011799,2]
[347823658,1736136632679,-500.0,0.00011799,2]
[347823659,1736136632692,-500.0,0.00011799,2]
[347823660,1736136632702,-500.0,0.00011799,2]
[347823661,1736136632711,-500.0,0.00011799,2]
[347823662,1736136632721,-500.0,0.00011799,2]
[347823663,1736136632730,-272.91258886,0.00011799,2]
[347823664,1736136632739,-500.0,0.00011799,2]
[347823665,1736136632749,-500.0,0.00011799,2]
[347823666,1736136632758,-500.0,0.00011799,2]
[347823667,1736136632767,-2763.8,0.00011799,2]
[347823668,1736136632776,-500.0,0.00011799,2]
[347823669,1736136632785,-1413.35,0.00011799,2]
[347823670,1736136632795,-500.0,0.00011799,2]
[347823671,1736136632804,-500.0,0.00011799,2]
[347823672,1736136632813,-476.77137182,0.00011799,2]
[347823673,1736136632823,-500.0,0.00011799,2]
[347823674,1736136632832,-993.17,0.00011799,2]
[347823675,1736136632842,-500.0,0.00011799,2]
[347823676,1736136632851,-500.0,0.00011799,2]
[347823677,1736136632861,-2082.8,0.00011799,2]
[347823678,1736136632871,-500.0,0.00011799,2]
[347823679,1736136632880,-500.0,0.00011799,2]
[347823680,1736136632890,-500.0,0.00011799,2]
[347823681,1736136632899,-500.0,0.00011799,2]
[347823682,1736136632908,-500.0,0.00011799,2]
[347823683,1736136632917,-500.0,0.00011799,2]
[347823684,1736136632927,-500.0,0.00011799,2]
[347823685,1736136632936,-500.0,0.00011799,2]
[347823686,1736136632945,-500.0,0.00011799,2]
[347823687,1736136632954,-326.28364484,0.00011799,2]
[347823688,1736136632980,-173.71635516,0.00011799,2]
[347823689,1736136632989,-275.972226,0.00011799,2]
[347823690,1736136632998,-261.99256094,0.00011799,2]
[347823691,1736136633049,-238.00743906,0.00011799,2]
[347823692,1736136633059,-186.99256094,0.00011799,2]
[347823693,1736136637661,-267.08044013,0.00011799,2]
[347823694,1736136637721,-45.92699893,0.00011799,2]
[347823695,1736136637731,-500.0,0.00011799,2]
[347823696,1736136637740,-500.0,0.00011799,2]
[347823697,1736136637749,-150.79096428,0.00011799,2]
[347823698,1736136637761,-65.93521472,0.00011799,2]
[347823699,1736136637771,-224.87578528,0.00011799,2]
[347823700,1736136637783,-275.12421472,0.00011799,2]
[347823701,1736136637793,-500.0,0.00011799,2]
[347823702,1736136637803,-500.0,0.00011799,2]
[347823703,1736136637812,-277.64274378,0.00011799,2]
[347823704,1736136637823,-242.72083064,0.00011799,2]
[347823705,1736136637833,-500.0,0.00011799,2]
[347823706,1736136637842,-500.0,0.00011799,2]
[347823707,1736136637851,-500.0,0.00011799,2]
[347823708,1736136637861,-500.0,0.00011799,2]
[347823709,1736136637870,-500.0,0.00011799,2]
[347823710,1736136637879,-288.93177191,0.00011799,2]
[347823711,1736136637890,-211.06822809,0.00011799,2]
[347823712,1736136637899,-500.0,0.00011799,2]
[347823713,1736136637909,-210.01470352,0.00011799,2]
[347823714,1736136637919,-500.0,0.00011799,2]
[347823715,1736136637927,-500.0,0.00011799,2]
[347823716,1736136637937,-317.16364104,0.00011799,2]
[347823717,1736136637947,-500.0,0.00011799,2]
[347823718,1736136637956,-500.0,0.00011799,2]
[347823719,1736136637966,-500.0,0.00011799,2]
[347823720,1736136637975,-500.0,0.00011799,2]
[347823721,1736136637985,-500.0,0.00011799,2]
[347823722,1736136637994,-500.0,0.00011799,2]
[347823723,1736136638003,-500.0,0.00011799,2]
[347823724,1736136638013,-500.0,0.00011799,2]
[347823725,1736136638022,-500.0,0.00011799,2]
[347823726,1736136638032,-500.0,0.00011799,2]
[347823727,1736136638043,-500.0,0.00011799,2]
[347823728,1736136638052,-251.24327739,0.00011799,2]
[347823729,1736136638061,-500.0,0.00011799,2]
[347823730,1736136638071,-500.0,0.00011799,2]
[347823731,1736136638081,-273.84717539,0.00011799,2]
[347823733,1736136638093,-226.15282461,0.00011799,2]
[347823735,1736136638102,-500.0,0.00011799,2]
[347823736,1736136638111,-59.18818381,0.00011799,2]
[347823739,1736136638123,-201.26739451,0.00011799,2]
[347823741,1736136638132,-778.46662892,0.00011799,2]
[347823743,1736136638143,-722.130003,0.00011799,2]
[347823745,1736136638154,-427.40336808,0.00011799,2]
[347823747,1736136638163,-216.50634154,0.00011799,2]
[347823749,1736136638175,-283.49365846,0.00011799,2]
[347823751,1736136638184,-500.0,0.00011799,2]
[347823753,1736136638193,-213.91337398,0.00011799,2]
[347823755,1736136638208,-253.91801011,0.00011799,2]
[347823757,1736136638218,-500.0,0.00011799,2]
[347823759,1736136638227,-703.04,0.00011799,2]
[347823762,1736136638237,-283.16398379,0.00011799,2]
[347823764,1736136638250,-276.30601621,0.00011799,2]
[347823766,1736136638259,-28.26398379,0.00011799,2]
[347823768,1736136638272,-471.73601621,0.00011799,2]
[347823769,1736136638282,-500.0,0.00011799,2]
[347823770,1736136638291,-500.0,0.00011799,2]
[347823771,1736136638300,-500.0,0.00011799,2]
[347823772,1736136638310,-500.0,0.00011799,2]
[347823773,1736136638319,-500.0,0.00011799,2]
[347823774,1736136638328,-500.0,0.00011799,2]
[347823775,1736136638337,-500.0,0.00011799,2]
[347823776,1736136638347,-1568.12,0.00011799,2]
[347823777,1736136638356,-354.53617473,0.00011799,2]
[347823778,1736136638365,-500.0,0.00011799,2]
[347823780,1736136638374,-632.78,0.00011799,2]
[347823782,1736136638384,-500.0,0.00011799,2]
[347823784,1736136638393,-1232.2,0.00011799,2]
[347823786,1736136638402,-500.0,0.00011799,2]
[347823788,1736136638411,-500.0,0.00011799,2]
[347823790,1736136638421,-225.62780906,0.00011799,2]
[347823816,1736136638656,-274.37219094,0.00011799,2]
[347823818,1736136638665,-1541.34560192,0.00011799,2]
[347823820,1736136638676,-2494.58439808,0.00011799,2]
[347823822,1736136638687,-500.0,0.00011799,2]
[347823824,1736136638696,-263.97810889,0.00011799,2]
[347823826,1736136638706,-500.0,0.00011799,2]
[347823828,1736136638716,-1721.12,0.00011799,2]
[347823830,1736136638725,-500.0,0.00011799,2]
[347823832,1736136638734,-500.0,0.00011799,2]